[Event "GCT 11th Sinquefield Cup 2024"]
[Site "Saint Louis"]
[Date "2024.08.23"]
[Round "5.3"]
[White "Abdusattorov, Nodirbek"]
[Black "Gukesh D"]
[Result "1/2-1/2"]
[ECO "C84"]
[WhiteElo "2762"]
[BlackElo "2766"]
[Annotator "TA"]
[PlyCount "92"]
[EventDate "2024.08.09"]
[EventType "tourn"]
[EventCountry "USA"]
[SourceTitle "playchess.com"]
[Source "ChessBase"]
[SourceQuality "1"]
[TimeControl "7200+30"]

{[%evp 20,92,17,4,20,33,16,0,0,0,0,0,0,0,0,0,0,0,0,0,0,-4,0,0,33,40,38,35,47,28,33,32,44,25,40,56,43,50,43,59,65,65,54,54,55,54,55,55,55,56,67,0,0,0,0,0,0,0,0,0,0,0,0,0,0,0,0,0,0,0,0,0,0,0,0]} 1. e4 {[%emt 0:01:09]} e5 {[%emt 0:00:06]} 2. Nf3 {[%emt 0:00:21]} Nc6 {[%emt 0:00:06]} 3. Bb5 {[%emt 0:00:19]} a6 {[%emt 0:00:07]} 4. Ba4 {[%emt 0:00:07]} Nf6 {[%emt 0:00:04]} 5. d3 {[%emt 0:00:07]} b5 {[%emt 0:05:57]} 6. Bb3 {[%emt 0:00:11]} Be7 {[%emt 0:00:23]} 7. a4 {[%emt 0:00:06]} Rb8 {[%emt 0:16:02]} 8. axb5 {[%emt 0:01:44]} axb5 {[%emt 0:00:06]} 9. Nc3 {[%emt 0:00:04]} O-O {[%emt 0:00:48]} 10. O-O {[%emt 0:00:08][%cal Bh1f1,Bf1e1,Be1e4][%mdl 32]} d6 {[%emt 0:00:36]} 11. h3 {[%emt 0:00:08]} h6 {[%emt 0:01:24]} 12. Nd5 {[%emt 0:13:01]} Nxd5 {[%emt 0:04:58]} 13. exd5 {[%emt 0:03:02]} Nd4 {[%emt 0:00:14]} 14. Nxd4 {[%emt 0:00:11]} exd4 {[%emt 0:00:06]} 15. Re1 {[%emt 0:07:45]} Bf6 {[%emt 0:05:06]} 16. Qf3 {[%emt 0:05:07]} Kh7 {[%emt 0:04:06]} 17. Bd2 {[%emt 0:02:36]} Bd7 {[%emt 0:02:49]} 18. Re4 {[%emt 0:01:09]} Ra8 {[%emt 0:23:13]} 19. Rae1 {[%emt 0:02:01]} Re8 {[%emt 0:04:54]} 20. g3 {[%emt 0:16:11]} Qc8 {[%emt 0:10:21]} 21. h4 {[%emt 0:05:23]} Re5 {[%emt 0:02:07]} 22. Rxe5 {[%emt 0:24:18]} (22. Rxd4 $2 {loses.} Rxe1+ 23. Bxe1 Bxd4 $19) 22... dxe5 {[%emt 0:00:27]} 23. Qh5 {[%emt 0:00:12][%cal Of2f4]} Kg8 {[%emt 0:12:47] [#] Hoping for ...Bg4.} 24. d6 $1 {[%emt 0:00:39]} Be6 {[%emt 0:00:25]} 25. Bxe6 {[%emt 0:05:58]} Qxe6 {[%emt 0:04:03]} 26. dxc7 {[%emt 0:01:21]} Ra7 {[%emt 0:11:52][%cal Ba8a7,Ba7c7,Bc7c5,Bc5d5][%mdl 32]} 27. c3 {[%emt 0:10:33]} (27. f4 Rxc7 28. fxe5 Be7 $11) 27... dxc3 {[%emt 0:00:04]} 28. Bxc3 {[%emt 0:00:15][%cal Re1e5] [#] Rxe5 would now be deadly.} Rxc7 {[%emt 0:00:05]} 29. Bxe5 {[%emt 0:07:05][%cal Oe5c3]} Rc5 {[%emt 0:02:00]} 30. d4 {[%emt 0:00:33]} Rd5 {[%emt 0:00:05]} 31. Re3 {[%emt 0:01:37]} Qd7 {[%emt 0:01:20]} 32. Qf3 {[%emt 0:02:07]} Bxe5 {[%emt 0:04:36]} 33. dxe5 $14 {[%emt 0:00:07][%mdl 4096] Endgame. KQR-KQR} ({Much weaker is} 33. Rxe5 Rxd4 34. h5 Kh7 $11) 33... Qe6 $1 {[%emt 0:00:26]} 34. Qe2 {[%emt 0:05:13]} Rc5 {[%emt 0:02:00]} 35. Re4 {[%emt 0:07:44]} (35. Kg2 $14) 35... Rc1+ $11 {[%emt 0:06:51] The position is equal.} 36. Kh2 {[%emt 0:02:59]} Qc6 {[%emt 0:00:56]} 37. Qd3 {[%emt 0:01:15]} h5 {[%emt 0:04:30]} 38. b4 {[%emt 0:00:06]} Ra1 {[%emt 0:00:43]} 39. Qe3 {[%emt 0:02:34]} Rb1 {[%emt 0:00:49]} 40. Qe2 {[%emt 0:02:32]} Rc1 {[%emt 0:01:14]} 41. Qd3 {[%emt 0:00:26]} Ra1 {[%emt 0:00:05]} 42. Qe3 {[%emt 0:01:29]} Rb1 {[%emt 0:01:35]} 43. Qe2 {[%emt 0:01:18]} Rc1 {[%emt 0:00:11]} 44. Qd3 {[%emt 0:00:00]} Ra1 {[%emt 0:00:11]} 45. Kh3 {[%emt 0:00:57]} Rc1 {[%emt 0:01:33]} 46. Kh2 {[%emt 0:00:50]} Ra1 {[%emt 0:00:20] Weighted Error Value: White=0.03 (flawless) /Black=0.02 (flawless) .  Mistake:       	White=1     	---        Inaccurate:     	---       	Black=1      OK:         	White=15    	Black=23     Best:        	---       	Black=1      Strong:       	---       	Black=1      Brilliant:      	White=1     	---} 1/2-1/2

[Event "GCT 11th Sinquefield Cup 2024"]
[Site "Saint Louis"]
[Date "2024.08.23"]
[Round "5.4"]
[White "Praggnanandhaa R"]
[Black "So, Wesley"]
[Result "1/2-1/2"]
[ECO "C54"]
[WhiteElo "2749"]
[BlackElo "2751"]
[Annotator "RC"]
[PlyCount "214"]
[EventDate "2024.08.09"]
[EventType "tourn"]
[EventCountry "USA"]
[SourceTitle "playchess.com"]
[Source "ChessBase"]
[SourceQuality "1"]
[TimeControl "7200+30"]

1. e4 {[%emt 0:01:00]} e5 {[%emt 0:00:05]} 2. Nf3 {[%emt 0:00:08]} Nc6 {[%emt 0:00:04]} 3. Bc4 {[%emt 0:00:14]} Bc5 {[%emt 0:00:07]} 4. c3 {[%emt 0:00:18]} Nf6 {[%emt 0:00:04]} 5. d3 {[%emt 0:00:04]} d6 {[%emt 0:00:04]} 6. Bg5 {[%emt 0:00:09]} h6 {[%emt 0:02:13]} 7. Bh4 {[%emt 0:00:13]} a5 {[%emt 0:00:20]} 8. Nbd2 {[%emt 0:00:31]} Ba7 {[%emt 0:01:16]} 9. O-O {[%emt 0:00:52]} g5 {[%emt 0:10:28]} 10. Bg3 {[%emt 0:00:16]} O-O {[%emt 0:00:05]} 11. a3 {[%emt 0:00:26]} Nh7 {[%emt 0:07:25]} 12. Kh1 {[%emt 0:01:52]} h5 {[%emt 0:07:03]} 13. h4 {[%emt 0:05:13]} Bg4 {[%emt 0:10:00]} 14. hxg5 {[%emt 0:18:22]} Ne7 {[%emt 0:00:07]} 15. Qe1 {[%emt 0:05:30]} Ng6 {[%emt 0:03:13]} 16. d4 {[%emt 0:03:07]} Re8 {[%emt 0:15:35]} 17. Qe3 {[%emt 0:11:45]} Kg7 {[%emt 0:01:28]} 18. Rae1 {[%emt 0:06:16]} Qe7 {[%emt 0:14:19]} 19. Nh2 {[%emt 0:14:13]} h4 {[%emt 0:20:19]} 20. Nxg4 {[%emt 0:18:26]} hxg3 {[%emt 0:00:03]} 21. Nf3 {[%emt 0:02:05]} Rh8 {[%emt 0:01:03]} 22. Kg1 {[%emt 0:03:12]} exd4 {[%emt 0:00:02]} 23. cxd4 {[%emt 0:04:45]} Ne5 {[%emt 0:00:08]} 24. Ngxe5 {[%emt 0:09:03]} dxe5 {[%emt 0:00:02]} 25. Nxe5 {[%emt 0:00:06]} Nxg5 {[%emt 0:14:30]} 26. Qxg3 {[%emt 0:03:22]} Raf8 {[%emt 0:00:11]} 27. Rd1 {[%emt 0:08:08]} f6 {[%emt 0:02:27]} 28. Nf3 {[%emt 0:00:05]} Rh5 {[%emt 0:00:35]} 29. Nxg5 {[%emt 0:00:36]} fxg5 {[%emt 0:01:01]} 30. Qe5+ {[%emt 0:05:52]} Qxe5 {[%emt 0:00:07]} 31. dxe5 {[%emt 0:00:01]} g4 {[%emt 0:00:43]} 32. Rd7+ {[%emt 0:00:57]} Kh6 {[%emt 0:04:29]} 33. g3 {[%emt 0:02:03]} Rxe5 {[%emt 0:00:01]} 34. Rxc7 {[%emt 0:00:36]} Rxe4 {[%emt 0:00:03]} 35. Rxb7 {[%emt 0:02:27]} Bc5 {[%emt 0:06:12]} 36. Bf7 {[%emt 0:03:01]} Re2 {[%emt 0:03:17]} 37. Kg2 {[%emt 0:00:12]} Bd4 {[%emt 0:02:20]} 38. Rd7 {[%emt 0:01:30]} Rd2 {[%emt 0:02:13]} 39. b4 {[%emt 0:00:47]} axb4 {[%emt 0:00:02]} 40. axb4 {[%emt 0:00:06]} Rb8 {[%emt 0:02:30]} 41. b5 {[%emt 0:01:37]} Kg5 {[%emt 0:02:03]} 42. Rd5+ {[%emt 0:01:00]} Kf6 {[%emt 0:00:48]} 43. Bh5 {[%emt 0:00:01]} Ke6 44. Rg5 {[%emt 0:00:09]} Kf6 {[%emt 0:00:02]} 45. Rg6+ {[%emt 0:01:30]} Kf5 {[%emt 0:00:11]} 46. Rxg4 {[%emt 0:00:08]} Rxb5 {[%emt 0:00:01]} 47. Rf4+ {[%emt 0:00:21]} Kg5 {[%emt 0:00:04]} 48. Bg4 {[%emt 0:00:06]} Rb3 {[%emt 0:02:36]} 49. Kh3 {[%emt 0:01:31]} Rbb2 {[%emt 0:00:21]} 50. Rf5+ {[%emt 0:00:13]} Kg6 {[%emt 0:00:01]} 51. Kg2 {[%emt 0:00:11]} Rb6 {[%emt 0:00:34]} 52. Rd5 {[%emt 0:01:18]} Rbb2 {[%emt 0:00:31]} 53. Be2 {[%emt 0:00:33]} Kf6 {[%emt 0:02:07]} 54. Re1 {[%emt 0:00:10]} Ra2 {[%emt 0:00:57]} 55. Kf3 {[%emt 0:00:51]} Kg6 {[%emt 0:00:37]} 56. Rd6+ {[%emt 0:00:26]} Kg7 {[%emt 0:00:43]} 57. Rd7+ {[%emt 0:00:27]} Kf6 {[%emt 0:00:07]} 58. Bc4 {[%emt 0:00:37]} Ra5 {[%emt 0:00:27]} 59. Kg4 {[%emt 0:00:31]} Rg5+ {[%emt 0:00:49]} 60. Kh4 {[%emt 0:00:01]} Re5 {[%emt 0:00:18]} 61. Rxe5 {[%emt 0:00:59]} Kxe5 {[%emt 0:00:01]} 62. f4+ {[%emt 0:00:13]} Kf5 {[%emt 0:00:17]} 63. Kh3 {[%emt 0:00:27]} Bc3 {[%emt 0:00:29]} 64. Rf7+ {[%emt 0:00:06]} Ke4 {[%emt 0:00:51]} 65. Kg4 {[%emt 0:00:19]} Rg2 {[%emt 0:01:14]} 66. Rd7 {[%emt 0:01:21]} Rg1 {[%emt 0:00:08]} 67. Rd3 {[%emt 0:00:06]} Be1 {[%emt 0:00:19]} 68. Rb3 {[%emt 0:00:03]} Kd4 {[%emt 0:00:59]} 69. Ba6 {[%emt 0:00:04]} Bf2 {[%emt 0:00:25]} 70. Rf3 {[%emt 0:01:10]} Be1 {[%emt 0:00:09]} 71. Bb7 {[%emt 0:01:04]} Rh1 {[%emt 0:00:27]} 72. Kf5 {[%emt 0:00:37]} Rh5+ {[%emt 0:00:11]} 73. Kg4 {[%emt 0:00:11]} Rh7 {[%emt 0:00:01]} 74. Ba6 {[%emt 0:00:38]} Rg7+ {[%emt 0:00:14]} 75. Kh3 {[%emt 0:00:01]} Ke4 {[%emt 0:00:03]} 76. Kg2 {[%emt 0:00:05]} Rd7 {[%emt 0:00:31]} 77. Rf1 {[%emt 0:00:51]} Bd2 {[%emt 0:01:05]} 78. Rb1 {[%emt 0:00:28]} Re7 {[%emt 0:01:37]} 79. Rb3 {[%emt 0:01:04]} Rc7 {[%emt 0:00:30]} 80. Rb5 {[%emt 0:00:37]} Re7 {[%emt 0:00:34]} 81. Bc8 {[%emt 0:00:27]} Be1 {[%emt 0:00:23]} 82. Rb1 {[%emt 0:00:29]} Bd2 {[%emt 0:00:17]} 83. Ra1 {[%emt 0:00:33]} Rc7 {[%emt 0:01:01]} 84. Ra4+ {[%emt 0:00:07]} Ke3 {[%emt 0:00:29]} 85. Bf5 {[%emt 0:00:08]} Ke2 {[%emt 0:00:36]} 86. Re4+ {[%emt 0:01:15]} Be3 {[%emt 0:00:03]} 87. Re8 {[%emt 0:00:09]} Rc3 {[%emt 0:00:52]} 88. Bg6 {[%emt 0:00:35]} Kd2 {[%emt 0:00:27]} 89. Rd8+ {[%emt 0:00:36]} Ke1 {[%emt 0:00:02]} 90. Bd3 {[%emt 0:00:27]} Kd2 {[%emt 0:00:17]} 91. Bb5+ {[%emt 0:00:26]} Ke1 {[%emt 0:00:02]} 92. Bd3 {[%emt 0:00:16]} Kd2 {[%emt 0:00:02]} 93. Bf5+ {[%emt 0:00:11]} Ke1 {[%emt 0:00:02]} 94. Bg6 {[%emt 0:00:17]} Ra3 {[%emt 0:00:31]} 95. Rd6 {[%emt 0:00:42]} Bc5 {[%emt 0:01:21]} 96. Rd5 {[%emt 0:00:38]} Be3 {[%emt 0:00:56]} 97. Kf3 {[%emt 0:01:06]} Bd4+ {[%emt 0:00:29]} 98. Ke4 {[%emt 0:00:36]} Bb6 {[%emt 0:01:09]} 99. g4 {[%emt 0:00:05]} Kf2 {[%emt 0:00:00]} 100. f5 {[%emt 0:01:02]} Ra4+ {[%emt 0:00:29]} 101. Ke5 {[%emt 0:00:11]} Rxg4 {[%emt 0:00:07]} 102. Be8 {[%emt 0:00:48]} Ke3 {[%emt 0:00:25]} 103. Bc6 {[%emt 0:00:21]} Rd4 {[%emt 0:00:16]} 104. f6 {[%emt 0:00:28]} Rxd5+ {[%emt 0:00:12]} 105. Kxd5 {[%emt 0:00:04]} Bd8 {[%emt 0:00:03]} 106. f7 {[%emt 0:00:03]} Be7 {[%emt 0:00:01]} 107. f8=B {[%emt 0:00:08]} Bxf8 {[%emt 0:00:04]} 1/2-1/2

[Event "GCT 11th Sinquefield Cup 2024"]
[Site "Saint Louis"]
[Date "2024.08.23"]
[Round "5.5"]
[White "Nepomniachtchi, Ian"]
[Black "Ding, Liren"]
[Result "1/2-1/2"]
[ECO "C88"]
[WhiteElo "2767"]
[BlackElo "2745"]
[Annotator "TA"]
[PlyCount "131"]
[EventDate "2024.08.09"]
[EventType "tourn"]
[EventCountry "USA"]
[SourceTitle "playchess.com"]
[Source "ChessBase"]
[SourceQuality "1"]
[TimeControl "7200+30"]

{[%evp 16,131,13,22,15,16,42,8,20,0,0,0,0,0,0,0,0,0,0,0,0,23,0,22,23,0,8,0,18,29,31,31,42,10,37,20,23,25,32,30,32,10,22,0,0,0,0,0,0,0,0,0,0,0,0,0,90,90,90,90,90,76,76,76,93,94,95,90,94,76,88,77,88,88,88,54,54,61,100,10,12,12,68,19,19,19,19,8,8,8,8,8,8,8,8,8,8,8,8,8,8,8,8,8,8,0,0,0,0,0,0,0,0,0,0,0,0,0]} 1. e4 {[%emt 0:00:03]} e5 {[%emt 0:00:21]} 2. Nf3 {[%emt 0:00:06]} Nc6 {[%emt 0:00:01]} 3. Bb5 {[%emt 0:00:06]} a6 {[%emt 0:00:04]} 4. Ba4 {[%emt 0:00:04]} Nf6 {[%emt 0:00:04]} 5. O-O {[%emt 0:00:06]} Be7 {[%emt 0:00:02]} 6. Re1 {[%emt 0:00:06]} b5 {[%emt 0:00:13]} 7. Bb3 {[%emt 0:00:04]} O-O {[%emt 0:00:04]} 8. h3 {[%emt 0:00:05]} Bb7 {[%emt 0:02:07]} 9. d3 {[%emt 0:00:21]} d5 {[%emt 0:00:04]} 10. exd5 {[%emt 0:00:06]} Nxd5 {[%emt 0:00:03]} 11. Nbd2 {[%emt 0:00:10]} Nd4 {[%emt 0:15:47]} 12. Nxd4 {[%emt 0:00:24]} exd4 {[%emt 0:00:03]} 13. Qf3 {[%emt 0:00:10][%cal Oe1e7]} Rb8 {[%emt 0:05:23][%cal Od5e3]} 14. Ne4 {[%emt 0:00:34]} c5 {[%emt 0:17:30]} 15. a4 {[%emt 0:06:47][%cal Ba2a4,Ba4b5][%mdl 32]} Nf6 {[%emt 0:08:44][%cal Bd5f6,Bf6e4,Be4d2][%mdl 32] Strongly threatening ...Nxe4.} 16. axb5 {[%emt 0:08:08]} Nxe4 {[%emt 0:01:23]} 17. bxa6 {[%emt 0:00:55]} Nd2 $1 {[%emt 0:01:09]} 18. Qe2 {[%emt 0:00:06] Really sharp!} Nxb3 {[%emt 0:00:05]} 19. cxb3 {[%emt 0:00:04]} Bd6 {[%emt 0:00:47]} 20. axb7 {[%emt 0:00:08]} Rxb7 {[%emt 0:00:01]} 21. Qc2 {[%emt 0:27:36]} Qd7 {[%emt 0:11:07]} 22. Bd2 {[%emt 0:02:20]} Rfb8 {[%emt 0:00:04] [#]} 23. b4 $1 {[%emt 0:00:07]} cxb4 {[%emt 0:00:03]} 24. Qb3 {[%emt 0:00:21]} Bf8 {[%emt 0:01:05]} 25. Rac1 {[%emt 0:06:12]} Rc7 {[%emt 0:01:59]} 26. Rxc7 {[%emt 0:01:54]} Qxc7 {[%emt 0:00:03]} 27. Re4 {[%emt 0:02:34]} Ra8 {[%emt 0:01:53]} 28. Bf4 {[%emt 0:02:41]} (28. Bxb4 $2 {too greedy.} Qb8 29. Qd5 Bxb4 $19) 28... Bd6 {[%emt 0:02:06]} 29. g3 {[%emt 0:07:04] aiming for Qd5.} Bxf4 {[%emt 0:08:32]} 30. Rxf4 $11 {[%emt 0:01:29][%mdl 4096] Endgame. KQR-KQR} Ra1+ {[%emt 0:00:03]} 31. Kh2 {[%emt 0:01:12]} Qb7 {[%emt 0:00:04][%csl Gb7][%cal Ra1h1] Repels Re4} 32. Re4 $1 {[%emt 0:00:56][%cal Re4e8]} h6 {[%emt 0:00:04]} 33. Qc4 $40 {[%emt 0:01:06][%mdl 128] White has some attack.} (33. Rxd4 $2 Qh1#) 33... Rf1 {[%emt 0:02:43]} 34. Kg2 {[%emt 0:03:33]} Rb1 {[%emt 0:01:15]} 35. Qxd4 {[%emt 0:07:24]} f5 {[%emt 0:01:46]} (35... Qc6 $11) 36. Qxb4 $16 {[%emt 0:01:13]} Rxb2 {[%emt 0:00:21]} 37. Qxb7 {[%emt 0:00:11]} Rxb7 {[%emt 0:00:03] KR-KR} 38. Rd4 {[%emt 0:03:57]} Kf7 {[%emt 0:06:54]} 39. Kf3 {[%emt 0:00:32]} Ke6 {[%emt 0:15:27]} 40. Ra4 {[%emt 0:00:59]} Rb6 {[%emt 0:06:04]} 41. Ra5 {[%emt 0:03:23]} Kf6 {[%emt 0:02:02]} 42. Rc5 {[%emt 0:01:59]} Ra6 {[%emt 0:01:02]} 43. Ke3 {[%emt 0:01:19]} g5 {[%emt 0:04:32]} 44. g4 {[%emt 0:02:02]} f4+ {[%emt 0:01:12]} 45. Ke4 {[%emt 0:00:31]} Ra2 $1 {[%emt 0:04:56]} 46. Rc6+ {[%emt 0:00:25]} Kg7 $1 {[%emt 0:00:30]} 47. Kf3 {[%emt 0:00:13]} (47. f3 $16) 47... Rd2 $11 {[%emt 0:01:04]} 48. Rd6 {[%emt 0:00:06]} Rd1 {[%emt 0:02:34]} ({Black should play} 48... Kh7 $11) 49. Rd8 {[%emt 0:05:22]} (49. Ke4 $14) 49... Rh1 {[%emt 0:01:22] The position is equal.} 50. Kg2 {[%emt 0:00:06]} Rd1 {[%emt 0:00:25]} 51. d4 {[%emt 0:01:05][%cal Bd3d4,Bd4d5,Bd5d6][%mdl 32]} Rd3 {[%emt 0:01:09]} 52. Rd6 {[%emt 0:00:05]} Kh7 {[%emt 0:01:07]} 53. Rd7+ {[%emt 0:00:08]} Kg6 {[%emt 0:00:05]} 54. d5 {[%emt 0:00:31]} Kf6 {[%emt 0:03:49]} 55. d6 {[%emt 0:02:04]} Kg6 {[%emt 0:00:03]} 56. Rd8 {[%emt 0:00:10]} Kg7 {[%emt 0:00:15]} 57. d7 {[%emt 0:00:44]} Kh7 {[%emt 0:00:27] [#]} 58. h4 $1 {[%emt 0:00:11]} gxh4 {[%emt 0:05:47]} 59. Rf8 {[%emt 0:00:32]} (59. f3 {keeps more tension.} Kg7 60. Kh2 h3 61. Ra8) 59... Rxd7 {[%emt 0:00:05]} (59... h3+ {seems wilder.} 60. Kh2 Rxd7 61. Rxf4 Rd3) 60. Kh3 {[%emt 0:00:19]} Rd3+ {[%emt 0:00:12]} 61. Kxh4 {[%emt 0:00:18]} Rf3 {[%emt 0:00:03]} 62. g5 {[%emt 0:00:10]} hxg5+ {[%emt 0:00:03]} 63. Kxg5 {[%emt 0:00:04]} Rxf2 {[%emt 0:00:03]} 64. Rf7+ {[%emt 0:00:04]} Kg8 {[%emt 0:00:03]} 65. Rxf4 {[%emt 0:00:04]} Rxf4 {[%emt 0:00:03]} 66. Kxf4 {[%emt 0:00:05] Weighted Error Value: White=0.08 (flawless) /Black=0.07 (flawless) .  Mistake:       	White=2     	Black=2      Inaccurate:     	White=3     	Black=2      OK:         	White=21    	Black=33     Best:        	White=1     	Black=1      Strong:       	White=1     	Black=3} 1/2-1/2

[Event "GCT 11th Sinquefield Cup 2024"]
[Site "Saint Louis"]
[Date "2024.08.25"]
[Round "6.1"]
[White "Ding, Liren"]
[Black "Praggnanandhaa R"]
[Result "1/2-1/2"]
[ECO "E94"]
[WhiteElo "2745"]
[BlackElo "2749"]
[Annotator "TA"]
[PlyCount "63"]
[EventDate "2024.08.09"]
[EventType "tourn"]
[EventCountry "USA"]
[SourceTitle "playchess.com"]
[Source "ChessBase"]
[SourceQuality "1"]
[TimeControl "7200+30"]

{[%evp 19,63,54,96,79,73,61,88,93,87,102,107,89,84,98,79,61,60,43,79,45,42,37,86,29,34,26,28,27,29,5,8,12,8,4,4,4,4,4,4,4,4,0,4,0,4,0]} 1. Nf3 {[%emt 0:00:04]} Nf6 {[%emt 0:01:21]} 2. c4 {[%emt 0:00:53]} g6 {[%emt 0:00:15]} 3. Nc3 {[%emt 0:02:20]} Bg7 {[%emt 0:00:55]} 4. e4 {[%emt 0:00:09]} d6 {[%emt 0:00:06]} 5. d4 {[%emt 0:00:04]} O-O {[%emt 0:00:07]} 6. Be2 {[%emt 0:03:57]} e5 {[%emt 0:00:33]} 7. O-O {[%emt 0:02:19]} exd4 {[%emt 0:01:03]} 8. Nxd4 {[%emt 0:00:04]} Re8 {[%emt 0:00:06]} 9. f3 {[%emt 0:00:03]} c6 {[%emt 0:00:07][%cal Bc7c6,Bc6d5,Bd5d4][%mdl 32]} 10. Kh1 {[%emt 0:00:05]} d5 {[%emt 0:01:56]} 11. cxd5 {[%emt 0:00:20]} cxd5 {[%emt 0:00:08]} 12. Bg5 $1 {[%emt 0:01:22] Hoping for Nxd5.} Nc6 {[%emt 0:00:58] [#]} 13. Bb5 $1 {[%emt 0:04:13] White is more active. White is better.} h6 {[%emt 0:00:43]} 14. Nxc6 {[%emt 0:15:21]} bxc6 {[%emt 0:00:45]} 15. Bxc6 {[%emt 0:00:03] Black must now prevent Bxf6.} hxg5 {[%emt 0:00:08]} 16. Bxa8 {[%emt 0:00:03]} d4 {[%emt 0:00:09]} 17. Nd5 {[%emt 0:00:03]} Ba6 {[%emt 0:00:19][%csl LRa8,LRf1][%cal Oa6f1]} 18. Bc6 {[%emt 0:00:22]} Re6 {[%emt 0:04:10] [#]} 19. Rc1 $1 {[%emt 0:00:05]} Bxf1 {[%emt 0:04:54]} 20. Qxf1 {[%emt 0:00:12]} Qb8 {[%emt 0:06:56] [#]} (20... g4 $14 {was preferrable.}) 21. Qb5 {[%emt 0:18:22]} (21. b3 $1 $16) 21... Qxb5 $11 {[%emt 0:09:11]} 22. Bxb5 {[%emt 0:07:14]} Nxd5 {[%emt 0:06:02]} 23. exd5 {[%emt 0:00:35][%mdl 4096] Endgame. KRB-KRB} Re5 {[%emt 0:00:14]} 24. Bc4 {[%emt 0:00:04]} d3 {[%emt 0:00:15] The position is equal.} 25. Bxd3 {[%emt 0:00:03]} Rxd5 {[%emt 0:00:04]} 26. Bc4 {[%emt 0:00:05]} Bxb2 {[%emt 0:00:07]} 27. Bxd5 {[%emt 0:00:03]} Bxc1 {[%emt 0:00:04] KB-KB} 28. g3 {[%emt 0:00:05]} Kg7 {[%emt 0:00:05]} 29. Kg2 {[%emt 0:00:03]} Kg8 {[%emt 0:00:04]} 30. Kh1 {[%emt 0:00:05]} Kg7 {[%emt 0:00:01]} 31. Kg2 {[%emt 0:00:05]} Kg8 {[%emt 0:00:04]} 32. Kh1 {[%emt 0:00:04] Weighted Error Value: White=0.12 (very precise) /Black=0.05 (flawless) .  Mistake:       	White=1     	Black=1      Inaccurate:     	White=1     	---        OK:         	White=3     	Black=11     Best:        	White=1     	Black=5      Strong:       	White=2     	---} 1/2-1/2